bitfinex-derivatives/quotes_SOLF0:USTF0_20260312
["timestamp","ask_amount","ask_price","bid_price","bid_amount"]
[1773330991504,3.41011793,86.64,86.615,10.39]
[1773330992004,3.41011793,86.65,86.603,4.56170017]
[1773330992200,3.41011793,86.65,86.621,10.389]
[1773330993104,3.41011793,86.66,86.627,10.388]
[1773330993703,3.41011793,86.66,86.632,10.388]
[1773330994403,3.41011793,86.66,86.628,4.56170017]
[1773330994601,36.32,86.696,86.628,4.56170017]
[1773330994602,3.41011793,86.65,86.628,4.56170017]
[1773330995003,3.41011793,86.66,86.628,4.56170017]
[1773330996612,3.41011793,86.67,86.638,10.387]
[1773331001217,3.41011793,86.68,86.645,4.56170017]
[1773331001913,3.41011793,86.68,86.649,10.386]
[1773331002315,3.41011793,86.68,86.645,4.56170017]
[1773331003414,3.41011793,86.67,86.645,4.56170017]
[1773331004707,3.41011793,86.67,86.641,10.387]
[1773331004911,3.41011793,86.66,86.634,10.387]
[1773331007511,4.52222197,86.671,86.634,10.387]
[1773331007512,3.41011793,86.67,86.634,10.387]
[1773331007713,3.41011793,86.68,86.642,4.25586959]
[1773331008311,3.41011793,86.67,86.646,10.386]
[1773331008608,3.41011793,86.67,86.642,4.25586959]
[1773331008816,3.41011793,86.68,86.642,4.25586959]
[1773331009008,3.41011793,86.68,86.652,10.385]
[1773331009209,3.41011793,86.69,86.642,4.25586959]
[1773331009415,4.52222197,86.702,86.642,4.25586959]
[1773331009416,3.41011793,86.7,86.642,4.25586959]
[1773331010011,3.41011793,86.68,86.64,4.25586959]
[1773331010414,4.52222197,86.699,86.64,4.25586959]
[1773331010607,3.41011793,86.67,86.64,4.25586959]
[1773331010806,3.41011793,86.68,86.64,4.25586959]
[1773331011212,3.41011793,86.67,86.64,4.25586959]
[1773331013317,3.41011793,86.67,86.641,10.387]
[1773331014321,3.41011793,86.66,86.623,4.29440507]
[1773331015019,3.41011793,86.67,86.623,4.29440507]
[1773331016016,3.41011793,86.67,86.638,10.387]
[1773331017317,4.42920826,86.703,86.644,4.29440507]
[1773331017519,3.41011793,86.68,86.644,4.29440507]
[1773331018618,3.41011793,86.69,86.657,10.385]
[1773331020122,3.41011793,86.68,86.635,4.29440507]
[1773331021120,3.41011793,86.66,86.621,4.29440507]
[1773331022821,3.41011793,86.64,86.601,4.29440507]
[1773331023220,3.41011793,86.65,86.601,4.29440507]
[1773331024127,3.41011793,86.65,86.612,10.39]
[1773331024428,3.41011793,86.64,86.612,10.39]
[1773331025222,3.41011793,86.65,86.618,10.389]
[1773331025524,3.41011793,86.66,86.601,4.29440507]
[1773331025723,3.41011612,86.66,86.601,4.29440507]
[1773331026319,3.41011612,86.65,86.626,10.388]
[1773331026522,3.41011612,86.65,86.615,4.29440507]
[1773331027123,3.41011612,86.66,86.634,10.387]
[1773331027317,10.382,86.678,86.579,36.32]
[1773331027318,3.41011612,86.67,86.629,4.29440507]
[1773331028026,3.41011612,86.66,86.633,10.388]
[1773331029826,14.81120826,86.678,86.629,4.29440507]
[1773331030022,3.41011612,86.66,86.629,4.29440507]
[1773331030826,3.41011612,86.66,86.637,10.387]
[1773331033334,3.41011612,86.67,86.637,10.387]
[1773331034032,3.41011612,86.67,86.637,14.68140507]
[1773331034431,3.41011612,86.68,86.64,4.29440507]
[1773331034935,3.41011612,86.69,86.64,4.29440507]
[1773331035134,3.41011612,86.69,86.656,10.385]
[1773331035334,3.41011612,86.68,86.656,10.385]
[1773331035632,3.41011612,86.68,86.64,4.29440507]
[1773331035832,3.41011612,86.68,86.648,10.386]
[1773331036832,3.41011612,86.68,86.656,10.385]
[1773331037135,3.41011612,86.69,86.656,10.385]
[1773331040939,3.41011612,86.69,86.663,10.384]
[1773331041134,3.41011612,86.68,86.643,4.33128849]
[1773331041733,3.41011612,86.67,86.648,10.386]
[1773331042037,7.73666227,86.66,86.614,4.33128849]
[1773331042234,3.41011612,86.64,86.614,4.33128849]
[1773331042435,3.41011612,86.64,86.58,3.41011612]
[1773331042636,3.41011612,86.64,86.571,36.32]
[1773331042637,3.41011612,86.62,86.581,4.33128849]
[1773331042831,3.41011612,86.61,86.581,4.33128849]
[1773331043035,3.41011612,86.61,86.582,10.394]
[1773331043637,3.41011612,86.61,86.581,4.33128849]
[1773331044030,3.41011612,86.6,86.551,4.33128849]
[1773331044443,3.41011612,86.61,86.551,4.33128849]
[1773331044644,4.32654615,86.635,86.561,4.33128849]
[1773331044849,3.41011612,86.61,86.561,4.33128849]
[1773331046049,3.41011612,86.6,86.561,4.33128849]
[1773331046448,3.41011612,86.6,86.565,10.396]
[1773331046651,3.41011612,86.59,86.565,10.396]
[1773331047550,3.41011612,86.6,86.565,10.396]
[1773331050045,3.41011612,86.61,86.575,4.33128849]
[1773331051853,3.41011612,86.59,86.559,4.33128849]
[1773331053551,3.41011612,86.61,86.569,4.33128849]
[1773331054045,3.41011612,86.61,86.578,10.394]
[1773331055156,3.41011612,86.6,86.578,10.394]
[1773331056057,3.41011612,86.61,86.578,10.394]
[1773331056457,3.41011612,86.6,86.578,10.394]
[1773331057955,3.41011612,86.65,86.592,4.33128849]
[1773331058654,3.41011612,86.65,86.613,10.39]
[1773331059056,36.32,86.685,86.592,4.33128849]
[1773331059057,3.41011612,86.63,86.592,4.33128849]
[1773331059657,4.32654615,86.665,86.601,4.33128849]
[1773331059860,3.41011612,86.65,86.601,4.33128849]
[1773331060960,3.41011612,86.65,86.616,4.33128849]
[1773331062460,3.41011612,86.66,86.616,4.33128849]
[1773331063155,3.41011612,86.65,86.616,4.33128849]
[1773331063756,3.41011612,86.65,86.618,4.09093409]
[1773331064662,3.41011612,86.65,86.62,4.09093409]
[1773331066068,3.41011612,86.65,86.622,10.389]
[1773331067164,3.41011612,86.65,86.623,4.09093409]
[1773331068672,3.41011612,86.66,86.625,10.389]
[1773331069566,3.41011612,86.64,86.591,4.09093409]
[1773331069968,3.41011612,86.65,86.591,4.09093409]
[1773331070363,3.41011612,86.65,86.617,10.389]
[1773331070567,3.41011612,86.65,86.617,14.42935424]
[1773331070770,3.41011612,86.65,86.618,4.04035424]
[1773331070970,3.41011612,86.65,86.621,10.389]
[1773331071765,3.41011612,86.63,86.593,4.04035424]
[1773331071970,3.41011612,86.62,86.571,4.04035424]
[1773331072471,3.41011612,86.63,86.571,4.04035424]
[1773331073673,3.41011612,86.61,86.56,3.41011612]
[1773331073862,3.41011612,86.6,86.56,4.04035424]
[1773331074269,3.41011612,86.59,86.56,4.04035424]
[1773331074567,3.41011612,86.57,86.521,4.04035424]
[1773331074769,3.41011612,86.56,86.525,10.401]
[1773331074973,3.41011612,86.56,86.521,4.04035424]
[1773331075177,3.41011612,86.6,86.551,4.04035424]
[1773331075670,3.41011612,86.6,86.558,4.04035424]
[1773331076871,3.41011612,86.6,86.561,10.396]
[1773331077074,4.27015144,86.612,86.558,4.04035424]
[1773331077271,3.41011612,86.6,86.558,4.04035424]
[1773331077669,3.41011612,86.58,86.538,4.04035424]
[1773331078577,3.41011612,86.57,86.538,4.04035424]
[1773331079173,4.27015144,86.589,86.538,4.04035424]
[1773331079371,3.41011612,86.57,86.538,4.04035424]
[1773331079771,4.27015144,86.589,86.547,10.398]
[1773331079772,3.41011612,86.58,86.547,10.398]
[1773331080468,10.391,86.605,86.555,10.397]
[1773331080669,3.41011612,86.59,86.555,10.397]
[1773331081071,3.41011612,86.6,86.559,4.04035424]
[1773331081277,3.41011612,86.59,86.543,4.04035424]
[1773331081475,3.41011612,86.6,86.543,4.04035424]
[1773331082069,3.41011612,86.59,86.551,4.04035424]
[1773331082379,3.41011612,86.58,86.535,4.04035424]
[1773331082775,7.68026756,86.57,86.517,4.04035424]
[1773331082978,3.41011612,86.55,86.501,4.04035424]
[1773331083370,3.41011612,86.55,86.516,10.402]
[1773331083971,4.27015144,86.568,86.516,10.402]
[1773331084181,3.41011612,86.56,86.516,10.402]
[1773331085677,3.41799437,86.56,86.516,10.402]
[1773331086685,3.41799437,86.55,86.516,10.402]
[1773331087183,3.41799437,86.54,86.507,10.403]
[1773331088083,3.41799437,86.55,86.501,4.04035424]
[1773331088584,3.41799437,86.56,86.523,10.401]
[1773331089086,3.41799437,86.55,86.523,10.401]
[1773331089579,4.27015144,86.569,86.523,10.401]
[1773331089783,4.27015144,86.567,86.515,10.402]
[1773331090781,4.27015144,86.563,86.506,10.403]
[1773331091688,4.27015144,86.56,86.506,10.403]
[1773331092197,4.27015144,86.549,86.499,10.404]
[1773331093882,4.27015144,86.548,86.499,10.404]
[1773331094491,4.27015144,86.544,86.491,10.405]
[1773331094684,4.27015144,86.529,86.455,4.04035424]
[1773331095083,4.27015144,86.519,86.468,10.407]
[1773331095285,4.27015144,86.519,86.43,9.15601538]
[1773331095482,4.27015144,86.519,86.414,20.828]
[1773331095483,4.27015144,86.509,86.431,4.04035424]
[1773331096085,10.404,86.496,86.444,10.41]
[1773331096283,9.15601538,86.51,86.431,4.04035424]
[1773331096284,4.27015144,86.489,86.431,4.04035424]
[1773331096492,4.27015144,86.489,86.414,4.04035424]
[1773331096891,4.27015144,86.488,86.414,4.04035424]
[1773331097395,4.27015144,86.487,86.433,10.412]
[1773331097789,4.27015144,86.487,86.441,10.411]
[1773331097994,4.27015144,86.487,86.412,4.04035424]
[1773331098995,4.27015144,86.486,86.43,10.412]
[1773331099189,4.27015144,86.486,86.412,4.04035424]
[1773331099694,4.27015144,86.479,86.421,10.413]
[1773331099893,4.27015144,86.469,86.421,10.413]
[1773331100692,4.27015144,86.469,86.429,10.412]
[1773331100896,4.27015144,86.469,86.421,3.82791467]
[1773331101290,4.27015144,86.469,86.429,10.412]
[1773331101595,4.27015144,86.469,86.421,3.82791467]
[1773331102400,4.27015144,86.469,86.406,3.82791467]
[1773331103496,4.27015144,86.469,86.415,10.414]
[1773331103693,4.27015144,86.469,86.406,3.82791467]
[1773331104192,4.27015144,86.469,86.425,10.413]
[1773331104593,4.27015144,86.469,86.432,10.412]
[1773331104795,9.15601538,86.51,86.421,3.82791467]
[1773331104796,9.15601538,86.5,86.421,3.82791467]
[1773331105098,3.99721681,86.499,86.421,3.82791467]
[1773331105297,14.40121681,86.497,86.444,10.41]
[1773331106094,3.99721681,86.497,86.451,10.409]
[1773331106696,9.15601538,86.5,86.411,20.829]
[1773331106697,9.15601538,86.5,86.46,10.408]
[1773331106903,3.99721681,86.513,86.453,3.82791467]
[1773331107396,13.15323219,86.5,86.453,3.82791467]
[1773331107601,3.99721681,86.499,86.411,3.82791467]
[1773331107900,9.15601538,86.48,86.411,3.82791467]
[1773331108297,9.15601538,86.5,86.411,3.82791467]
[1773331108599,3.99721681,86.499,86.439,3.82791467]
[1773331108899,3.99721681,86.515,86.439,3.82791467]
[1773331109302,3.99721681,86.515,86.469,10.407]
[1773331110000,3.99721681,86.515,86.461,10.408]
[1773331110897,10.403,86.507,86.461,10.408]
[1773331111602,3.99721681,86.514,86.461,10.408]
[1773331111798,3.99721681,86.514,86.469,10.407]
[1773331112802,3.99721681,86.514,86.461,10.408]
[1773331113099,10.403,86.506,86.461,10.408]
[1773331113304,3.99721681,86.514,86.461,10.408]
[1773331113506,3.99721681,86.514,86.457,3.82791467]
[1773331113704,10.403,86.506,86.457,3.82791467]
[1773331114208,3.99721681,86.499,86.413,3.82791467]
[1773331114801,3.99721681,86.499,86.428,3.82791467]
[1773331115904,9.15601538,86.5,86.443,3.82791467]
[1773331116103,3.99721681,86.515,86.443,3.82791467]
[1773331116506,3.99721681,86.498,86.443,3.82791467]
[1773331116706,3.99721681,86.498,86.428,3.82791467]
[1773331117010,3.99721681,86.495,86.451,10.409]
[1773331117400,3.99721681,86.495,86.428,3.82791467]
[1773331117710,3.99721681,86.486,86.428,3.82791467]
[1773331118413,3.99721681,86.484,86.436,10.411]
[1773331119610,3.99721681,86.482,86.436,10.411]
[1773331119814,3.99721681,86.479,86.436,10.411]
[1773331120613,3.99721681,86.479,86.442,10.41]
[1773331122506,3.99721681,86.475,86.432,10.412]
[1773331122902,3.99721681,86.459,86.414,10.414]
[1773331123102,3.99721681,86.459,86.393,3.82791467]
[1773331123703,3.87867118,86.457,86.412,10.414]
[1773331124408,9.15601538,86.46,86.407,3.77584802]
[1773331124608,3.87867118,86.474,86.407,3.77584802]
[1773331125114,10.408,86.463,86.417,10.414]
[1773331125607,10.408,86.463,86.407,3.77584802]
[1773331126208,3.87867118,86.474,86.407,3.77584802]
[1773331126812,3.87867118,86.473,86.429,10.412]
[1773331127316,3.87867118,86.473,86.407,3.77584802]
[1773331127612,10.407,86.47,86.407,3.77584802]
[1773331127815,9.15601538,86.48,86.407,3.77584802]
[1773331128012,3.87867118,86.488,86.407,3.77584802]
[1773331128318,3.87867118,86.488,86.409,3.77584802]
[1773331128512,3.87867118,86.488,86.433,3.77584802]
[1773331130417,3.97722528,86.479,86.418,4.06332848]
[1773331130718,3.97722528,86.495,86.418,4.06332848]
[1773331132018,3.97722528,86.492,86.432,4.06332848]
[1773331133122,14.38222528,86.49,86.445,10.41]
[1773331133313,3.97722528,86.489,86.445,10.41]
[1773331134017,3.97722528,86.489,86.451,10.409]
[1773331134716,3.97722528,86.488,86.444,10.41]
[1773331134915,3.97722528,86.488,86.432,4.06332848]
[1773331135314,3.97722528,86.486,86.432,4.06332848]
[1773331135515,3.97722528,86.479,86.396,4.06332848]
[1773331136021,3.97722528,86.473,86.431,10.412]
[1773331136220,3.97722528,86.473,86.416,4.06332848]
[1773331137017,3.97722528,86.459,86.389,4.06332848]
[1773331137823,3.97722528,86.459,86.419,10.413]
[1773331138216,3.97722528,86.459,86.426,10.413]
[1773331138420,10.407,86.472,86.418,4.06332848]
[1773331139223,10.408,86.466,86.426,10.412]
[1773331139421,3.97722528,86.465,86.418,4.06332848]
[1773331140621,9.04800436,86.494,86.418,4.06332848]
[1773331140921,9.15601538,86.52,86.448,4.06332848]
[1773331141121,3.97722528,86.558,86.471,4.06332848]
[1773331141622,3.97722528,86.551,86.495,10.404]
[1773331141826,3.97722528,86.551,86.496,4.06332848]
[1773331142322,3.97722528,86.568,86.5,4.06332848]
[1773331143526,3.97722528,86.585,86.514,4.06332848]
[1773331143721,23.2799349,86.64,86.514,4.06332848]
[1773331143722,3.97722528,86.602,86.514,4.06332848]
[1773331143924,3.97722528,86.602,86.516,4.06332848]
[1773331144824,10.392,86.6,86.542,4.06332848]
[1773331145226,3.97722528,86.602,86.542,4.06332848]
[1773331145525,10.391,86.609,86.545,4.06332848]
[1773331145923,10.391,86.609,86.515,36.34]
[1773331145924,14.36622528,86.62,86.547,4.06332848]
[1773331146223,3.97722528,86.639,86.547,4.06332848]
[1773331146423,3.97722528,86.639,86.564,4.06332848]
[1773331146618,10.387,86.635,86.564,4.06332848]
[1773331147420,3.97722528,86.639,86.572,4.06332848]
[1773331148319,3.97722528,86.637,86.572,4.06332848]
[1773331149929,3.97722528,86.637,86.574,4.06332848]
[1773331150132,3.97722528,86.654,86.574,4.06332848]
[1773331151224,11.49352763,86.701,86.525,161.794]
[1773331151225,10.384,86.667,86.597,4.06332848]
[1773331151526,3.97722528,86.672,86.597,4.06332848]
[1773331152132,3.97722528,86.659,86.599,4.06332848]
[1773331152537,14.36222528,86.659,86.599,4.06332848]
[1773331152730,9.14623086,86.66,86.56,9.14623086]
[1773331152731,3.97722528,86.658,86.581,4.06332848]
[1773331152928,9.14623086,86.64,86.581,4.06332848]
[1773331153826,3.97722528,86.659,86.581,4.06332848]
[1773331154027,3.97722528,86.659,86.585,4.06332848]
[1773331154428,9.14623086,86.64,86.585,4.06332848]
[1773331154634,3.97722528,86.639,86.585,4.06332848]
[1773331155433,3.97722528,86.633,86.568,4.06332848]
[1773331155731,9.14623086,86.64,86.543,36.32]
[1773331155732,3.97722528,86.619,86.544,4.06332848]
[1773331156332,10.389,86.618,86.561,10.396]
[1773331156533,3.97722528,86.617,86.561,10.396]
[1773331156933,3.97722528,86.617,86.568,10.395]
[1773331157136,9.14623086,86.62,86.569,4.06332848]
[1773331158036,3.97722528,86.634,86.572,4.06332848]
[1773331159942,10.388,86.633,86.575,14.45732848]
[1773331160143,10.388,86.633,86.543,36.32]
[1773331160144,14.36522528,86.633,86.576,4.06332848]
[1773331160333,9.14623086,86.64,86.576,4.06332848]
[1773331160533,3.75239981,86.65,86.576,4.06332848]
[1773331161032,10.386,86.647,86.576,4.06332848]
[1773331161238,3.75239981,86.639,86.576,4.06332848]
[1773331162937,14.13939981,86.639,86.586,10.393]
[1773331163136,3.75239981,86.639,86.576,4.06332848]
[1773331163433,3.75239981,86.656,86.595,3.88533321]
[1773331164136,10.385,86.655,86.598,10.392]
[1773331164337,14.13739981,86.655,86.598,10.392]
[1773331165028,14.13739981,86.655,86.606,10.391]
[1773331165239,14.13739981,86.655,86.595,3.88533321]
[1773331165240,3.75239981,86.655,86.595,3.88533321]
[1773331166839,3.75239981,86.655,86.614,10.39]
[1773331167840,3.75239981,86.655,86.604,10.391]
[1773331169436,3.75239981,86.655,86.612,10.39]
[1773331169636,9.14623086,86.66,86.612,10.39]
[1773331170339,10.385,86.658,86.612,10.39]
[1773331170541,3.75239981,86.657,86.61,3.88533321]
[1773331171533,3.75239981,86.657,86.57,36.32]
[1773331171534,3.75239981,86.652,86.594,10.392]
[1773331171738,3.75239981,86.639,86.577,3.88533321]
[1773331172340,3.75239981,86.629,86.577,3.88533321]
[1773331172945,3.75239981,86.629,86.585,10.393]
[1773331173144,3.75239981,86.629,86.577,3.88533321]
[1773331174141,9.14623086,86.63,86.577,3.88533321]
[1773331174843,10.388,86.627,86.577,14.27933321]
[1773331175544,14.14039981,86.627,86.577,14.27933321]
[1773331176642,10.389,86.62,86.577,14.27933321]
[1773331176841,10.389,86.62,86.577,3.88533321]
[1773331177543,3.75239981,86.616,86.57,10.395]
[1773331178440,10.39,86.614,86.57,10.395]
[1773331178643,14.14239981,86.614,86.57,10.395]
[1773331179747,9.14623086,86.63,86.538,20.798]
[1773331179748,10.389,86.624,86.578,14.27933321]
[1773331180248,10.389,86.624,86.585,10.393]
[1773331180548,9.14623086,86.63,86.578,3.88533321]
[1773331182044,9.14623086,86.63,86.593,10.392]
[1773331183343,3.75239981,86.629,86.593,10.392]
[1773331183548,10.388,86.627,86.586,10.393]
[1773331184046,4.03587365,86.624,86.586,10.393]
[1773331184246,4.03587365,86.624,86.578,3.88533321]
[1773331184848,4.03587365,86.621,86.579,10.394]
[1773331185550,4.03587365,86.621,86.586,10.393]
[1773331185747,19.53423086,86.63,86.586,10.393]
[1773331186947,19.53423086,86.63,86.592,10.392]
[1773331187946,4.03587365,86.625,86.552,3.9660357]
[1773331188253,4.03587365,86.609,86.552,3.9660357]
[1773331189150,14.42687365,86.609,86.552,3.9660357]
[1773331189856,4.03587365,86.608,86.552,3.9660357]
[1773331190247,10.391,86.606,86.552,3.9660357]
[1773331190443,14.40923337,86.606,86.552,3.9660357]
[1773331191850,10.392,86.601,86.56,10.396]
[1773331192252,4.01823337,86.589,86.536,3.86941015]
[1773331192958,10.394,86.583,86.544,10.398]
[1773331193161,4.01823337,86.589,86.544,10.398]
[1773331193360,4.01823337,86.589,86.536,3.86941015]
[1773331193764,4.01823337,86.605,86.54,3.86941015]
[1773331194965,14.40923337,86.605,86.551,10.397]
[1773331195664,4.01823337,86.601,86.542,3.86941015]
[1773331196165,10.392,86.595,86.542,3.86941015]
[1773331197169,10.393,86.588,86.542,3.86941015]
[1773331197862,4.01823337,86.585,86.533,10.4]
[1773331199865,4.01823337,86.585,86.539,3.86941015]
[1773331200871,4.01823337,86.612,86.539,3.86941015]
[1773331201368,4.01823337,86.612,86.498,20.808]
[1773331201369,4.01823337,86.612,86.468,3.86941015]
[1773331202570,4.01823337,86.61,86.531,0.08388529]
[1773331202772,4.01823337,86.608,86.531,0.08388529]
[1773331203066,4.01823337,86.606,86.469,3.86941015]
[1773331203372,4.01823337,86.572,86.488,3.86941015]
[1773331203866,4.01823337,86.558,86.488,3.86941015]
[1773331204667,0.08333246,86.532,86.488,3.86941015]
[1773331206274,10.402,86.516,86.467,10.408]
[1773331206470,4.10156583,86.532,86.468,3.86941015]
[1773331206674,0.08333246,86.532,86.468,3.86941015]
[1773331206872,4.01823337,86.548,86.468,3.86941015]
[1773331207272,4.01823337,86.583,86.481,3.86941015]
[1773331207574,4.01823337,86.583,86.5,3.86941015]
[1773331208274,4.01823337,86.568,86.5,3.86941015]
[1773331209076,0.08628746,86.543,86.5,3.86941015]
[1773331209570,0.08628746,86.543,86.502,3.86941015]
[1773331209972,0.08628746,86.543,86.503,10.403]
[1773331210176,10.397,86.555,86.503,10.403]
[1773331210377,4.01823337,86.556,86.482,3.86941015]
[1773331210579,0.08647288,86.532,86.482,3.86941015]
[1773331211884,0.08647288,86.532,86.486,14.27441015]
[1773331212078,0.08647288,86.532,86.487,3.86941015]
[1773331212272,0.08647288,86.532,86.4,178.0]
[1773331212273,4.10470625,86.532,86.437,3.86941015]
[1773331212480,10.4,86.526,86.472,10.407]
[1773331212983,0.07331894,86.508,86.472,10.407]
[1773331213477,0.07331894,86.508,86.468,3.86941015]
[1773331214984,4.01823337,86.507,86.451,3.86941015]
[1773331215684,10.402,86.513,86.457,3.86941015]
[1773331215985,0.07782177,86.488,86.457,3.86941015]
[1773331216388,0.07782177,86.488,86.441,3.86941015]
[1773331216883,4.01823337,86.496,86.448,10.41]
[1773331217386,4.01823337,86.496,86.441,3.86941015]
[1773331217387,4.01823337,86.528,86.466,3.86941015]
[1773331217883,36.36,86.558,86.463,0.07621273]
[1773331217884,4.01823337,86.51,86.463,0.07621273]
[1773331218084,4.01823337,86.51,86.451,3.86941015]
[1773331218783,4.01823337,86.51,86.472,0.08567294]
[1773331220079,36.36,86.558,86.472,0.08567294]
[1773331220080,4.01823337,86.498,86.472,0.08567294]
[1773331220278,4.01823337,86.498,86.435,3.86941015]
[1773331221584,0.07556469,86.475,86.435,3.86941015]
[1773331222084,0.07556469,86.475,86.436,10.411]
[1773331222584,0.07556469,86.475,86.44,10.411]
[1773331222785,3.82913583,86.474,86.401,3.98364272]
[1773331223483,0.08221673,86.446,86.401,3.98364272]
[1773331223683,3.82913583,86.511,86.421,3.98364272]
[1773331223882,3.82913583,86.511,86.429,0.07787789]
[1773331224185,3.82913583,86.511,86.429,4.06152061]
[1773331224388,3.82913583,86.532,86.435,3.98364272]
[1773331224787,3.82913583,86.532,86.475,0.0795289]
[1773331224982,3.82913583,86.548,86.476,3.98364272]
[1773331225478,10.401,86.525,86.476,3.98364272]
[1773331225681,10.401,86.525,86.503,0.07770792]
[1773331226685,3.82913583,86.547,86.503,0.07770792]
[1773331226887,3.82913583,86.522,86.442,3.98364272]
[1773331227280,3.82913583,86.52,86.461,10.408]
[1773331227682,3.82913583,86.52,86.458,3.98364272]
[1773331228388,0.08885388,86.498,86.458,3.98364272]
[1773331232791,10.405,86.489,86.458,3.98364272]
[1773331232986,0.08885388,86.498,86.458,3.98364272]
[1773331233779,0.08885388,86.498,86.438,10.411]
[1773331233780,10.405,86.488,86.438,10.411]
[1773331233990,0.08885388,86.498,86.439,3.98364272]
[1773331234191,3.82913583,86.5,86.439,3.98364272]
[1773331234684,0.08311627,86.477,86.443,3.98364272]
[1773331235387,0.08311627,86.477,86.452,10.409]
[1773331236090,0.08311627,86.477,86.445,10.41]
[1773331236292,0.08311627,86.477,86.446,3.98364272]
[1773331236591,0.08311627,86.477,86.454,10.409]
[1773331236788,14.23313583,86.5,86.454,10.409]
[1773331237190,0.07334082,86.474,86.454,10.409]
[1773331238287,0.07334082,86.474,86.447,10.41]
[1773331238488,0.07334082,86.474,86.407,3.98364272]
[1773331238891,3.82913583,86.487,86.428,3.98364272]
[1773331239494,3.82913583,86.487,86.449,0.07514769]
[1773331239696,10.407,86.474,86.449,0.07514769]
[1773331241597,10.408,86.468,86.449,0.07514769]
[1773331241991,10.408,86.468,86.428,3.98364272]
[1773331242402,10.408,86.468,86.43,10.412]
[1773331242599,0.08838811,86.47,86.431,3.98364272]
[1773331243102,3.82913583,86.489,86.431,3.98364272]
[1773331243296,3.82913583,86.489,86.435,3.98364272]
[1773331243500,0.08728035,86.459,86.435,3.98364272]
[1773331244602,3.82913583,86.489,86.439,3.80630841]
[1773331245005,10.405,86.487,86.441,10.411]
[1773331245400,3.82913583,86.489,86.439,3.80630841]
[1773331245604,3.87423195,86.475,86.375,3.80630841]
[1773331245798,3.87423195,86.475,86.384,3.80630841]
[1773331245994,3.87423195,86.475,86.455,0.08857497]
[1773331246204,3.87423195,86.475,86.421,3.80630841]
[1773331246404,3.87423195,86.475,86.427,3.80630841]
[1773331247299,10.407,86.473,86.428,10.412]
[1773331247505,10.407,86.473,86.427,3.80630841]
[1773331247908,10.407,86.473,86.442,0.07316921]
[1773331249903,3.87423195,86.49,86.442,0.07316921]
[1773331250100,3.87423195,86.49,86.442,3.87947762]
[1773331250403,10.406,86.481,86.444,10.41]
[1773331250608,10.406,86.481,86.442,3.80630841]
[1773331250809,10.406,86.481,86.457,0.08440322]
[1773331251503,4.07545973,86.474,86.436,10.411]
[1773331252610,10.407,86.475,86.436,10.411]
[1773331252809,0.08099082,86.478,86.433,3.75755883]
[1773331253511,0.08099082,86.478,86.448,10.41]
[1773331253712,0.08099082,86.478,86.433,3.75755883]
[1773331254911,4.15645055,86.478,86.418,3.75755883]
[1773331255311,4.07545973,86.478,86.418,3.75755883]
[1773331255711,0.08197672,86.457,86.418,3.75755883]
[1773331255911,0.08197672,86.457,86.428,10.412]
[1773331256312,0.08197672,86.457,86.418,3.75755883]
[1773331258113,0.08197672,86.457,86.419,10.413]
[1773331260616,0.08197672,86.457,86.425,10.413]
[1773331260916,4.07545973,86.495,86.418,3.75755883]
[1773331261217,4.07545973,86.495,86.414,36.36]
[1773331261218,4.07545973,86.495,86.43,3.75755883]
[1773331261814,4.07545973,86.484,86.43,3.75755883]
[1773331262217,4.07545973,86.484,86.454,0.078376]
[1773331262623,4.07545973,86.483,86.454,0.078376]
[1773331263016,10.406,86.479,86.454,0.078376]
[1773331263226,10.406,86.479,86.437,10.411]
[1773331263424,4.07545973,86.483,86.443,10.41]
[1773331263623,4.07545973,86.483,86.458,0.07393168]
[1773331264329,10.406,86.482,86.458,0.07393168]
[1773331264626,4.07545973,86.478,86.387,3.75755883]
[1773331265227,10.407,86.468,86.387,3.75755883]
[1773331265623,4.07545973,86.493,86.391,3.75755883]
[1773331265928,4.07545973,86.493,86.443,3.75755883]
[1773331266433,10.405,86.485,86.443,3.75755883]
[1773331266634,10.405,86.485,86.459,0.07531102]
[1773331266823,10.405,86.492,86.459,0.07531102]
[1773331268329,4.07545973,86.493,86.459,0.07531102]
[1773331268736,10.406,86.484,86.459,0.07531102]
[1773331268928,4.07545973,86.493,86.459,0.07531102]
[1773331269522,10.406,86.477,86.428,3.75755883]
[1773331269723,4.07545973,86.476,86.428,3.75755883]
[1773331270124,10.407,86.475,86.429,10.412]